bitfinex-derivatives/quotes_SOLF0:USTF0_20250527
["timestamp","ask_amount","ask_price","bid_price","bid_amount"]
[1748352944717,5.64624034,178.19,178.15,7.65412732]
[1748352944913,0.03764034,178.19,178.15,2.04442732]
[1748352945310,0.03764034,178.19,178.18,5.6089]
[1748352945510,36.38,178.31,178.18,36.38]
[1748352945712,36.38,178.31,178.24,5.6067]
[1748352945917,36.38,178.31,178.18,36.38]
[1748352946117,484.42,178.33,178.19,62.0]
[1748352946319,36.38,178.35,178.19,62.0]
[1748352946320,5.6052,178.3,178.19,62.0]
[1748352946514,0.03550059,178.28,178.24,0.03762472]
[1748352946720,36.38,178.35,178.24,36.38]
[1748352947315,5.6062,178.27,178.24,36.38]
[1748352947515,36.38,178.35,178.24,36.38]
[1748352947712,0.04147742,178.31,178.28,0.04131106]
[1748352947923,5.6055,178.29,178.28,0.04131106]
[1748352950115,19.86460934,178.38,178.28,0.04131106]
[1748352950116,484.56,178.42,178.28,42.02131106]
[1748352950322,484.56,178.42,178.29,1.9442]
[1748352950515,5.6021,178.4,178.3,122.18]
[1748352950715,36.38,178.47,178.3,122.18]
[1748352951118,36.38,178.47,178.36,5.603]
[1748352951324,0.03555036,178.4,178.37,0.03553143]
[1748352951511,0.04263331,178.4,178.37,0.03553143]
[1748352952319,5.6026,178.38,178.37,0.03553143]
[1748352952624,0.04263331,178.4,178.37,0.03553143]
[1748352953617,5.6025,178.39,178.37,0.03553143]
[1748352954323,0.04263331,178.4,178.37,0.03553143]
[1748352955021,5.6025,178.39,178.37,0.03553143]
[1748352955225,0.04263331,178.4,178.37,0.03553143]
[1748352955528,5.6026,178.38,178.37,0.03553143]
[1748352955727,0.04263331,178.4,178.37,0.03553143]
[1748352957324,0.04263331,178.4,178.38,5.6023]
[1748352957724,0.04263331,178.4,178.37,36.39553143]
[1748352958523,36.36,178.46,178.38,1.974]
[1748352959025,36.36,178.46,178.37,0.03553143]
[1748352959427,5.6026,178.38,178.37,0.03553143]
[1748352960431,36.4002753,178.39,178.29,0.8339864]
[1748352960634,36.36,178.39,178.27,36.28]
[1748352961027,36.28,178.41,178.27,36.28]
[1748352961236,36.28,178.41,178.3,2.018]
[1748352961429,0.03749119,178.37,178.34,0.04275756]
[1748352962131,0.03749119,178.37,178.34,5.64635756]
[1748352962332,0.03749119,178.37,178.34,0.04275756]
[1748352962731,6.93140301,178.57,178.34,0.04275756]
[1748352962934,36.26,178.49,178.33,122.06]
[1748352963340,5.6009,178.44,178.33,122.06]
[1748352963638,36.26,178.49,178.33,122.06]
[1748352963936,0.03996006,178.43,178.39,0.03975461]
[1748352964939,5.602,178.4,178.39,0.03975461]
[1748352965126,0.03996006,178.43,178.39,0.03975461]
[1748352965530,5.602,178.4,178.39,0.03975461]
[1748352968132,5.604,178.34,178.3,38.278]
[1748352968336,36.26,178.39,178.3,38.278]
[1748352968539,5.6032,178.37,178.33,5.6041]
[1748352968933,36.26,178.39,178.33,5.6041]
[1748352969132,5.6031,178.37,178.34,0.03667558]
[1748352969340,0.04172648,178.38,178.34,0.03667558]
[1748352970635,5.6035,178.35,178.34,0.03667558]
[1748352970837,48.49227361,178.38,178.24,1.9377]
[1748352971035,1.729,178.37,178.24,1.9377]
[1748352971237,5.6066,178.26,178.24,1.9377]
[1748352971431,36.26,178.33,178.24,1.9377]
[1748352971648,36.26,178.33,178.21,5.6079]
[1748352971843,5.607,178.24,178.2,36.26]
[1748352972036,5.65019069,178.24,178.2,36.30288602]
[1748352972237,0.04319069,178.24,178.2,36.30288602]
[1748352973543,0.04319069,178.24,178.2,0.04288602]
[1748352974347,5.6079,178.21,178.2,0.04288602]
[1748352975740,0.04319069,178.24,178.2,0.04288602]
[1748352977138,0.04319069,178.24,178.21,5.6079]
[1748352977343,0.04319069,178.24,178.2,0.04288602]
[1748352977742,36.28,178.35,178.21,36.28]
[1748352978348,5.606,178.28,178.21,36.28]
[1748352978548,36.28,178.35,178.21,36.28]
[1748352978746,0.03547307,178.3,178.26,0.03915521]
[1748352978938,0.03547307,178.3,178.26,36.32166679]
[1748352979142,36.28,178.37,178.31,5.6046]
[1748352979343,36.28,178.37,178.27,3.8758]
[1748352980148,0.0395268,178.34,178.3,0.0404356]
[1748352981148,5.6048,178.31,178.3,0.0404356]
[1748352981446,0.0395268,178.34,178.21,1.8516]
[1748352981647,36.28,178.35,178.21,1.8516]
[1748352981850,36.28,178.35,178.26,5.6062]
[1748352982048,36.28,178.35,178.25,36.28]
[1748352982241,0.04249381,178.32,178.28,0.03678031]
[1748352983847,5.6054,178.29,178.28,0.03678031]
[1748352984239,5.6051,178.3,178.28,0.03678031]
[1748352984439,0.04249381,178.32,178.28,0.03678031]
[1748352986448,5.6054,178.29,178.28,0.03678031]
[1748352987751,5.6049,178.31,178.28,0.03678031]
[1748352987945,0.04249381,178.32,178.28,0.03678031]
[1748352989152,0.04249381,178.32,178.28,5.64228031]
[1748352989355,0.04249381,178.32,178.28,0.03678031]
[1748352990044,5.64709381,178.32,178.28,0.03678031]
[1748352990247,0.04249381,178.32,178.28,0.03678031]
[1748352990551,5.6049,178.31,178.28,0.03678031]
[1748352990754,0.04249381,178.32,178.28,0.03678031]
[1748352991651,5.6054,178.29,178.28,0.03678031]
[1748352991954,0.04249381,178.32,178.28,0.03678031]
[1748352992257,36.2,178.43,178.28,36.23678031]
[1748352992453,36.2,178.43,178.28,36.2]
[1748352992962,36.2,178.43,178.29,121.98]
[1748352993250,0.03883985,178.38,178.34,0.03813132]
[1748352994750,5.6032,178.36,178.34,0.03813132]
[1748352995656,5.6035,178.35,178.34,0.03813132]
[1748352996459,36.23883985,178.38,178.34,0.03813132]
[1748352996657,0.03883985,178.38,178.34,0.03813132]
[1748352997462,5.64153985,178.38,178.34,0.03813132]
[1748352997662,0.03883985,178.38,178.34,0.03813132]
[1748352997863,0.03883985,178.38,178.37,5.6029]
[1748352998264,0.03883985,178.38,178.34,0.03813132]
[1748352998468,5.6032,178.37,178.34,0.03813132]
[1748352998660,0.03883985,178.38,178.34,0.03813132]
[1748352998961,0.03883985,178.38,178.34,5.64163132]
[1748352999461,36.23883985,178.38,178.34,0.03813132]
[1748352999762,5.6035,178.35,178.34,0.03813132]
[1748353000862,41.84143985,178.38,178.34,0.03813132]
[1748353001066,0.03883985,178.38,178.34,0.03813132]
[1748353001762,36.2,178.46,178.34,5.95313132]
[1748353001968,36.2,178.46,178.34,5.915]
[1748353002568,5.6022,178.4,178.34,67.915]
[1748353002772,0.03602248,178.39,178.35,0.03760228]
[1748353002971,0.03602248,178.39,178.38,5.6026]
[1748353003572,0.03602248,178.39,178.35,0.03760228]
[1748353003871,0.03602248,178.39,178.35,36.21760228]
[1748353005173,5.6032,178.36,178.35,36.21760228]
[1748353005373,0.03602248,178.39,178.35,36.21760228]
[1748353005573,0.03602248,178.39,178.35,0.03760228]
[1748353005775,5.6032,178.36,178.35,0.03760228]
[1748353006679,0.03602248,178.39,178.35,0.03760228]
[1748353007380,5.6032,178.36,178.35,0.03760228]
[1748353011878,0.03602248,178.39,178.35,0.03760228]
[1748353012471,5.6032,178.36,178.35,0.03760228]
[1748353013671,5.603,178.37,178.35,0.03760228]
[1748353013876,0.03602248,178.39,178.35,0.03760228]
[1748353014477,36.2,178.45,178.35,0.03760228]
[1748353014675,36.2,178.45,178.35,3.85580228]
[1748353015174,14.20189644,178.52,178.4,5.602]
[1748353015175,5.6009,178.44,178.4,5.602]
[1748353015379,520.6,178.49,178.35,3.8182]
[1748353015573,0.03642477,178.44,178.4,0.04019973]
[1748353015773,5.63722477,178.44,178.4,5.64199973]
[1748353015975,0.03642477,178.44,178.4,0.04019973]
[1748353016380,0.03642477,178.44,178.42,5.6013]
[1748353017176,0.03642477,178.44,178.43,5.601]
[1748353017482,0.03642477,178.44,178.4,0.04019973]
[1748353017680,5.6011,178.43,178.4,0.04019973]
[1748353018074,5.6016,178.42,178.4,0.04019973]
[1748353018680,0.03642477,178.44,178.4,0.04019973]
[1748353019581,5.6011,178.43,178.4,0.04019973]
[1748353019878,0.03642477,178.44,178.4,0.04019973]
[1748353020077,5.6017,178.41,178.4,0.04019973]
[1748353020273,0.03642477,178.44,178.4,0.04019973]
[1748353021076,5.6017,178.41,178.4,0.04019973]
[1748353021675,5.6037,178.35,178.32,2.0554]
[1748353022078,4.3393,178.43,178.32,2.0554]
[1748353022474,16.53329644,178.43,178.28,36.1]
[1748353022681,5.6035,178.35,178.34,0.04090544]
[1748353023580,0.03700267,178.37,178.34,0.04090544]
[1748353024877,484.1,178.46,178.35,36.1]
[1748353025078,484.1,178.46,178.36,4.0251]
[1748353025388,484.1,178.46,178.3,36.1]
[1748353025773,0.03761502,178.4,178.3,36.1]
[1748353026087,0.03761502,178.4,178.36,0.04173569]
[1748353026477,0.03761502,178.4,178.37,5.6026]
[1748353026676,0.03761502,178.4,178.36,0.04173569]
[1748353027978,0.03761502,178.4,178.39,5.6023]
[1748353028288,36.1,178.47,178.36,0.04173569]
[1748353028289,36.1,178.47,178.37,2.0279]
[1748353028480,36.1,178.53,178.38,121.76]
[1748353028784,36.1,178.57,178.39,29.01399644]
[1748353029081,0.04308902,178.5,178.46,0.03548467]
[1748353029286,0.03880596,178.5,178.47,36.1]
[1748353029486,0.03880596,178.5,178.48,1.9059]
[1748353029982,0.03880596,178.5,178.46,0.04110566]
[1748353030587,5.5992,178.49,178.46,0.04110566]
[1748353030975,0.03880596,178.5,178.46,0.04110566]
[1748353031786,5.5998,178.47,178.46,0.04110566]
[1748353032380,5.5993,178.49,178.46,0.04110566]
[1748353032577,0.03880596,178.5,178.46,0.04110566]
[1748353032983,5.5998,178.47,178.46,0.04110566]
[1748353033583,0.03880596,178.5,178.46,0.04110566]
[1748353034088,5.5998,178.47,178.46,0.04110566]
[1748353034789,0.03880596,178.5,178.46,0.04110566]
[1748353035185,5.63790596,178.5,178.46,5.64110566]
[1748353035692,5.5976,178.54,178.49,5.5989]
[1748353035881,36.1,178.61,178.47,98.1]
[1748353036587,36.1,178.61,178.48,5.5994]
[1748353036789,0.04223262,178.56,178.53,0.03635808]
[1748353036988,5.5976,178.54,178.53,0.03635808]
[1748353037582,5.5974,178.55,178.53,0.03635808]
[1748353037778,0.04223262,178.56,178.53,0.03635808]
[1748353040199,5.5976,178.54,178.53,0.03635808]
[1748353040496,36.12223262,178.56,178.44,1.8736]
[1748353040697,5.5994,178.49,178.44,7.4741]
[1748353041095,36.08,178.56,178.44,1.8736]
[1748353041299,5.6,178.47,178.44,1.8736]
[1748353041500,0.04131681,178.47,178.44,1.91004846]
[1748353041895,0.04131681,178.47,178.46,5.6001]
[1748353042093,36.08,178.56,178.44,1.91004846]
[1748353042391,36.08,178.56,178.44,1.8736]
[1748353042900,36.08,178.56,178.46,5.5999]
[1748353043100,0.04212299,178.53,178.49,0.03870494]
[1748353043401,5.5986,178.51,178.49,0.03870494]
[1748353043607,0.04212299,178.53,178.49,0.03870494]
[1748353043901,5.5987,178.51,178.49,0.03870494]
[1748353044095,0.04212299,178.53,178.49,0.03870494]
[1748353044702,5.5988,178.5,178.49,0.03870494]
[1748353044899,0.04212299,178.53,178.49,0.03870494]
[1748353046612,0.04212299,178.53,178.49,2.08030494]
[1748353047103,0.04212299,178.53,178.51,5.5982]
[1748353047302,0.04212299,178.53,178.49,2.08030494]
[1748353047696,0.04212299,178.53,178.5,5.5988]
[1748353048296,0.04212299,178.53,178.51,5.5985]
[1748353048501,36.08,178.6,178.49,2.08030494]
[1748353048697,5.5969,178.57,178.49,2.0416]
[1748353048900,36.08,178.6,178.49,2.0416]
[1748353049301,5.5972,178.56,178.53,5.5979]
[1748353049499,0.04000229,178.56,178.53,0.04222645]
[1748353050302,5.5976,178.55,178.53,0.04222645]
[1748353050608,0.04000229,178.56,178.53,0.04222645]
[1748353051299,5.5975,178.55,178.53,0.04222645]
[1748353051508,0.04000229,178.56,178.53,0.04222645]
[1748353051803,0.04000229,178.56,178.55,5.5973]
[1748353052404,0.04000229,178.56,178.54,7.5312]
[1748353052801,0.04000229,178.56,178.54,1.9336]
[1748353055414,0.04000229,178.56,178.55,5.5973]
[1748353056502,0.04000229,178.56,178.54,1.9336]
[1748353057414,0.04000229,178.56,178.55,5.5973]
[1748353057610,0.04000229,178.56,178.54,1.9336]
[1748353058105,0.04000229,178.56,178.53,0.04222645]
[1748353060710,5.63710229,178.56,178.53,5.63992645]
[1748353061217,0.04000229,178.56,178.54,5.5975]
[1748353061410,0.04000229,178.56,178.53,0.04222645]
[1748353062310,0.04000229,178.56,178.54,5.5974]
[1748353062511,0.04000229,178.56,178.53,0.04222645]
[1748353062913,0.04000229,178.56,178.55,5.5973]
[1748353063215,0.04000229,178.56,178.53,0.04222645]
[1748353063421,5.63710229,178.56,178.53,0.04222645]
[1748353063718,0.04000229,178.56,178.53,0.04222645]
[1748353064111,5.5976,178.54,178.53,0.04222645]
[1748353065108,0.04000229,178.56,178.44,3.7581]
[1748353065309,14.17169644,178.57,178.5,5.5988]
[1748353065513,5.5983,178.52,178.44,3.7581]
[1748353065921,14.17169644,178.57,178.44,3.7581]
[1748353066117,0.04175075,178.52,178.49,0.04202695]
[1748353066417,483.64,178.62,178.49,0.04202695]
[1748353066616,5.5955,178.61,178.48,35.98]
[1748353066822,3.8333,178.67,178.48,64.99399644]
[1748353067015,35.98,178.68,178.48,65.83795846]
[1748353067314,35.98,178.68,178.52,0.63150864]
[1748353067521,0.04094641,178.62,178.58,0.0355061]
[1748353069518,5.63614641,178.62,178.58,0.0355061]
[1748353069717,0.04094641,178.62,178.58,0.0355061]
[1748353070223,0.04094641,178.62,178.58,35.9955061]
[1748353070521,0.04094641,178.62,178.58,0.0355061]
[1748353070717,5.63604641,178.62,178.58,0.0355061]
[1748353070918,0.04094641,178.62,178.58,0.0355061]
[1748353072422,5.5956,178.61,178.58,5.6316061]
[1748353072618,0.04094641,178.62,178.58,0.0355061]
[1748353072920,5.5954,178.61,178.58,0.0355061]
[1748353073112,0.04094641,178.62,178.58,0.0355061]
[1748353073423,5.63624641,178.62,178.58,5.6318061]
[1748353073722,0.04094641,178.62,178.58,0.0355061]
[1748353074025,0.04094641,178.62,178.59,5.596]
[1748353074322,0.04094641,178.62,178.58,0.0355061]
[1748353074626,0.04094641,178.62,178.61,5.5954]
[1748353074827,0.04094641,178.62,178.58,0.0355061]
[1748353075823,0.04094641,178.62,178.61,5.5954]
[1748353076022,0.04094641,178.62,178.58,0.0355061]
[1748353077135,0.04094641,178.62,178.59,5.5959]
[1748353077528,0.04094641,178.62,178.6,5.5956]
[1748353077729,0.04094641,178.62,178.58,0.0355061]
[1748353077927,5.5956,178.61,178.58,0.0355061]
[1748353078127,0.04094641,178.62,178.58,0.0355061]
[1748353078529,5.5956,178.61,178.58,0.0355061]
[1748353079027,0.04094641,178.62,178.58,0.0355061]
[1748353080131,0.04094641,178.62,178.6,5.5955]
[1748353080535,0.04094641,178.62,178.58,0.0355061]
[1748353080736,0.04094641,178.62,178.61,5.5954]
[1748353081942,0.04094641,178.62,178.58,0.0355061]
[1748353082542,0.04094641,178.62,178.61,5.5954]
[1748353083428,0.04094641,178.62,178.58,0.0355061]
[1748353083836,0.04094641,178.62,178.6,5.5956]
[1748353084037,0.04094641,178.62,178.58,0.0355061]
[1748353084935,0.04094641,178.62,178.6,5.5954]
[1748353085241,0.04094641,178.62,178.58,0.0355061]
[1748353085742,0.04094641,178.62,178.61,5.5954]
[1748353086142,0.04094641,178.62,178.58,0.0355061]
[1748353086343,5.5934,178.68,178.59,35.84]
[1748353086546,483.68,178.71,178.6,0.63381579]
[1748353086750,483.68,178.71,178.63,5.5947]
[1748353086933,483.68,178.71,178.6,0.63381579]
[1748353087441,0.04288995,178.67,178.65,5.5941]
[1748353087839,0.04288995,178.67,178.66,5.5938]
[1748353088544,0.04288995,178.67,178.65,5.5941]
[1748353088745,0.04288995,178.67,178.64,0.04121636]
[1748353088948,5.63648995,178.67,178.64,0.04121636]
[1748353089149,0.04288995,178.67,178.64,0.04121636]
[1748353089445,5.63648995,178.67,178.64,0.04121636]
[1748353089843,0.04288995,178.67,178.64,0.04121636]
[1748353091746,5.63648995,178.67,178.64,0.04121636]
[1748353092138,5.63648995,178.67,178.64,5.63541636]
[1748353092339,5.63648995,178.67,178.64,0.04121636]
[1748353092340,0.04288995,178.67,178.64,0.04121636]
[1748353092841,35.84,178.66,178.58,0.84577814]
[1748353093349,35.84,178.66,178.61,5.5952]
[1748353093547,35.84,178.66,178.58,1.4801578]
[1748353093745,35.84,178.66,178.58,7.0762578]
[1748353093945,35.84,178.66,178.6,0.04315428]
[1748353094650,35.84,178.66,178.61,0.63439817]
[1748353095446,35.84,178.66,178.6,0.04315428]
[1748353095849,0.04288995,178.67,178.6,0.04315428]
[1748353097647,5.5949,178.63,178.6,0.04315428]
[1748353097847,0.0373129,178.63,178.6,0.04315428]
[1748353098261,5.593,178.69,178.6,0.04315428]
[1748353098951,5.5932,178.68,178.6,0.04315428]
[1748353099149,483.42,178.7,178.6,0.04315428]
[1748353099348,0.03717179,178.67,178.64,5.5942]
[1748353099551,0.03717179,178.67,178.64,0.04007866]
[1748353099742,0.03717179,178.67,178.64,5.63437866]
[1748353100150,5.63097179,178.67,178.64,5.63437866]
[1748353100349,0.03717179,178.67,178.64,0.04007866]
[1748353100550,0.03717179,178.67,178.65,5.5941]
[1748353101761,0.03717179,178.67,178.66,5.5938]
[1748353101953,35.84,178.76,178.64,35.88007866]
[1748353102152,35.84,178.76,178.72,5.5917]
[1748353102357,35.84,178.76,178.65,0.63440467]
[1748353102756,5.5922,178.72,178.64,35.84]
[1748353102967,0.0365184,178.7,178.66,0.03873072]
[1748353103458,0.0365184,178.7,178.69,5.5926]
[1748353105863,35.84,178.76,178.66,0.03873072]
[1748353106360,483.42,178.79,178.66,0.03873072]
[1748353106556,483.42,178.79,178.64,35.84]
[1748353106760,483.42,178.79,178.73,5.5916]
[1748353106965,483.42,178.79,178.74,0.03932841]
[1748353107158,483.42,178.79,178.75,0.03755451]
[1748353107360,5.5909,178.76,178.75,0.03972146]
[1748353107758,489.0099,178.79,178.75,0.03972146]
[1748353107954,483.42,178.79,178.75,0.03972146]
[1748353108158,35.84,178.8,178.75,0.03972146]
[1748353108359,5.5904,178.77,178.75,0.03972146]
[1748353108661,35.84,178.8,178.75,0.03972146]
[1748353108868,5.5901,178.78,178.75,0.03972146]
[1748353109058,35.84,178.8,178.75,0.03972146]
[1748353109764,2.0491,178.83,178.75,0.03972146]
[1748353110266,38.2633,178.84,178.75,0.03972146]
[1748353110763,12.19399644,178.8,178.65,1.9289]
[1748353110964,37.7281,178.79,178.65,1.9289]
[1748353111266,37.7281,178.79,178.66,5.5936]
[1748353111568,37.7281,178.79,178.65,1.9289]
[1748353111762,0.03904129,178.74,178.7,0.04140033]
[1748353112461,5.5923,178.71,178.7,0.04140033]
[1748353114364,5.5923,178.71,178.7,3.3e-07]
[1748353114672,35.73904129,178.74,178.62,0.84672894]
[1748353114855,35.7,178.74,178.62,0.84672894]
[1748353115060,5.5936,178.67,178.62,0.84672894]
[1748353115461,0.03791839,178.66,178.63,5.63080973]
[1748353115668,0.03791839,178.66,178.63,0.03620973]
[1748353116166,0.03791839,178.66,178.64,5.5944]
[1748353116356,0.03791839,178.66,178.63,0.03620973]
[1748353116863,0.03791839,178.66,178.64,5.5942]
[1748353117278,0.03791839,178.66,178.65,5.5941]
[1748353117563,0.03791839,178.66,178.63,0.03620973]
[1748353117770,5.5945,178.64,178.63,0.03620973]
[1748353118273,5.5948,178.63,178.62,0.84672894]
[1748353119571,5.5951,178.62,178.61,0.03775646]
[1748353120668,5.5973,178.55,178.53,0.63484851]
[1748353120869,5.5973,178.55,178.51,2.59084851]
[1748353121270,35.7,178.63,178.51,2.59084851]
[1748353121772,0.03592294,178.59,178.56,0.03842223]
[1748353123069,5.5967,178.57,178.56,0.03842223]
[1748353123577,5.5964,178.58,178.56,0.03842223]
[1748353123769,0.03592294,178.59,178.56,0.03842223]
[1748353124874,0.03592294,178.59,178.57,5.5966]
[1748353125275,0.03592294,178.59,178.56,0.03842223]
[1748353125973,0.03592294,178.59,178.52,0.63431576]
[1748353125974,5.5979,178.53,178.52,0.63431576]
[1748353126177,35.72,178.58,178.51,0.63431576]
[1748353126472,1.8118,178.57,178.47,5.5997]
[1748353126677,1.8118,178.57,178.46,0.63431576]
[1748353127069,0.03814634,178.53,178.5,0.03567805]
[1748353128067,0.03814634,178.53,178.52,5.5982]
[1748353128475,35.72,178.59,178.51,2.0406]
[1748353128973,35.72,178.59,178.51,4.0661]
[1748353129178,35.72,178.59,178.51,66.0661]
[1748353129380,0.03611234,178.57,178.55,5.5971]
[1748353129571,0.04067202,178.58,178.54,0.04101496]
[1748353129978,0.04067202,178.58,178.57,5.5967]
[1748353130169,0.04067202,178.58,178.54,0.04101496]
[1748353130575,0.04067202,178.58,178.56,5.5968]
[1748353130882,0.04067202,178.58,178.54,0.04101496]
[1748353131480,5.5986,178.51,178.49,0.63349482]
[1748353131676,35.72,178.55,178.46,1.90577383]
[1748353131983,47.91399644,178.55,178.46,1.90577383]
[1748353132182,47.91399644,178.55,178.46,1.27227901]
[1748353132575,0.04100471,178.52,178.49,0.04295812]
[1748353132774,5.5988,178.5,178.49,0.04295812]
[1748353132985,35.74,178.5,178.42,1.69951874]
[1748353133182,1.8466,178.49,178.35,1.9585]
[1748353133976,0.03524463,178.44,178.4,0.03699443]
[1748353134179,35.74,178.43,178.4,0.03699443]
[1748353136187,0.03524463,178.44,178.4,0.03699443]
[1748353136977,0.03524463,178.44,178.43,5.601]
[1748353138188,0.03524463,178.44,178.4,0.03699443]
[1748353138890,0.03524463,178.44,178.43,5.601]
[1748353140582,0.03524463,178.44,178.4,0.03699443]
[1748353141088,0.03524463,178.44,178.43,5.601]
[1748353142589,0.03524463,178.44,178.4,0.03699443]
[1748353142990,35.63524463,178.44,178.4,0.03699443]
[1748353143586,5.6017,178.41,178.4,0.03699443]
[1748353143985,5.6027,178.38,178.34,5.6038]
[1748353144191,5.6027,178.38,178.3,5.57483668]
[1748353144390,35.6,178.39,178.3,5.57483668]
[1748353145088,5.6039,178.34,178.33,0.03567643]
[1748353145287,35.6,178.34,178.3,5.57483668]
[1748353145891,35.6,178.33,178.3,5.57483668]
[1748353146087,35.6,178.34,178.3,5.57483668]
[1748353146393,35.6,178.34,178.3,5.61735573]
[1748353147688,53.39399644,178.34,178.28,1.6994131]
[1748353147888,47.79399644,178.34,178.22,6.88264324]
[1748353148092,5.6061,178.28,178.23,5.6073]
[1748353148388,12.19399644,178.34,178.22,6.88264324]
[1748353148593,0.03779276,178.3,178.26,0.03625735]
[1748353150492,0.03779276,178.3,178.27,5.6061]
[1748353151095,0.03779276,178.3,178.27,5.6059]
[1748353151697,0.03779276,178.3,178.26,0.03625735]
[1748353152295,5.6056,178.29,178.26,0.03625735]
[1748353152492,0.03779276,178.3,178.26,0.03625735]
[1748353152694,35.65779276,178.3,178.26,0.03625735]
[1748353152900,5.6061,178.27,178.26,0.03625735]
[1748353153497,5.6058,178.28,178.26,0.03625735]
[1748353153990,0.03779276,178.3,178.26,0.03625735]
[1748353154591,1.8493,178.39,178.26,0.03625735]
[1748353154796,35.62,178.38,178.26,35.62]
[1748353154997,35.62,178.38,178.31,5.6047]
[1748353155188,5.6038,178.35,178.31,5.6047]
[1748353155592,5.604,178.34,178.31,0.03639014]
[1748353155796,0.03615723,178.35,178.31,0.03639014]
[1748353156205,5.6023,178.4,178.31,0.03639014]
[1748353156495,35.62,178.41,178.31,0.03639014]
[1748353157203,5.63868143,178.38,178.34,5.6037]
[1748353157400,0.03578143,178.38,178.34,0.03898513]
[1748353158301,525.1408,178.44,178.34,0.03898513]
[1748353158499,519.54,178.44,178.34,0.03898513]
[1748353158906,35.62,178.44,178.34,0.03898513]
[1748353159410,0.03673424,178.41,178.34,0.03898513]
[1748353159706,5.6026,178.39,178.35,5.6033]
[1748353159999,0.03673424,178.41,178.34,0.03898513]
[1748353161996,5.6036,178.35,178.34,0.03898513]
[1748353162505,0.04143025,178.36,178.34,0.03898513]
[1748353162901,5.6036,178.35,178.34,0.03898513]
[1748353163106,0.04143025,178.36,178.23,0.62898362]
[1748353163312,1.8524,178.37,178.23,2.59698362]
[1748353163508,1.8524,178.37,178.23,4.0044]
[1748353164016,0.04124445,178.32,178.28,0.03786815]
[1748353164218,35.66124445,178.32,178.28,0.03786815]
[1748353165317,5.6055,178.29,178.28,0.03786815]
[1748353166314,35.66124445,178.32,178.28,0.03786815]
[1748353167020,5.6055,178.3,178.28,0.03786815]
[1748353167219,35.66124445,178.32,178.28,0.03786815]
[1748353167915,0.04124445,178.32,178.28,0.03786815]
[1748353168420,35.64,178.37,178.28,0.03786815]
[1748353168718,35.64,178.37,178.28,35.64]
[1748353169020,35.64,178.37,178.32,5.6046]
[1748353169216,0.04137065,178.36,178.33,0.03847227]
[1748353169618,0.04137065,178.36,178.33,5.64247227]
[1748353171123,0.04137065,178.36,178.33,0.03847227]
[1748353171724,5.6039,178.34,178.33,0.03847227]
[1748353172618,0.04137065,178.36,178.33,0.03847227]
[1748353172816,0.04137065,178.36,178.33,5.64267227]
[1748353173224,0.04137065,178.36,178.33,0.03847227]
[1748353174422,0.04137065,178.36,178.34,5.6037]
[1748353174627,0.04137065,178.36,178.33,0.03847227]
[1748353177024,5.6039,178.34,178.33,0.03847227]
[1748353179428,5.6053,178.3,178.23,39.4644]
[1748353179724,1.8521,178.39,178.23,39.4644]
[1748353179930,35.46,178.38,178.23,39.4644]
[1748353180323,35.46,178.38,178.32,5.6044]
[1748353180625,0.04054074,178.37,178.33,0.03922504]
[1748353180925,5.6034,178.36,178.33,0.03651067]
[1748353181125,0.04028025,178.37,178.33,0.03651067]
[1748353181831,5.64358025,178.37,178.33,5.64051067]
[1748353182220,0.04028025,178.37,178.34,5.6039]
[1748353183024,5.64328025,178.37,178.33,5.64061067]
[1748353183530,5.6034,178.36,178.33,0.03651067]
[1748353184529,5.64328025,178.37,178.33,0.03651067]
[1748353185424,0.04028025,178.37,178.35,5.6034]
[1748353185625,0.04028025,178.37,178.34,1.9598]
[1748353185825,41.0619,178.41,178.34,1.9598]
[1748353186029,5.6019,178.41,178.34,2.5968362]
[1748353186422,35.46,178.44,178.34,2.5968362]
[1748353186622,35.46,178.44,178.37,5.603]
[1748353186824,0.04140855,178.42,178.39,0.04168592]
[1748353187024,5.6021,178.4,178.39,0.04168592]
[1748353187432,0.04140855,178.42,178.39,0.04168592]
[1748353187634,5.6017,178.41,178.39,0.04168592]
[1748353188132,0.04140855,178.42,178.39,0.04168592]
[1748353188133,5.6021,178.4,178.39,0.04168592]
[1748353188526,0.04140855,178.42,178.39,0.04168592]